bitfinex-derivatives/quotes_BNBF0:USTF0_20250305
["timestamp","ask_amount","ask_price","bid_price","bid_amount"]
[1741177238271,0.91106051,599.23,598.38,0.33423576]
[1741177238470,0.91106051,599.22,598.38,0.33423576]
[1741177238678,0.91106051,599.24,598.38,0.33423576]
[1741177238979,0.91106051,599.23,598.38,0.33423576]
[1741177239178,0.91106051,599.22,598.38,0.33423576]
[1741177239379,0.91106051,599.21,598.38,0.33423576]
[1741177239579,0.91106051,599.2,598.38,0.33423576]
[1741177239878,0.91106051,599.19,598.38,0.33423576]
[1741177240078,0.91325973,599.18,598.38,0.33423576]
[1741177240279,3.97946023,599.2,598.38,0.33423576]
[1741177240480,2.51824466,599.19,598.38,0.33423576]
[1741177240674,2.51824466,599.18,598.38,0.33423576]
[1741177240879,2.06144563,599.17,598.38,0.33423576]
[1741177241080,1.1481859,599.17,598.38,0.33423576]
[1741177241382,0.29065276,599.18,598.38,0.33423576]
[1741177241881,0.91325973,599.17,598.38,0.33423576]
[1741177242183,2.52261788,599.16,598.38,0.33423576]
[1741177242380,3.67080378,599.15,598.38,0.33423576]
[1741177242681,3.9842851,599.14,598.38,0.33423576]
[1741177242983,3.9842851,599.13,598.38,0.33423576]
[1741177243281,5.132471,599.12,598.38,0.33423576]
[1741177243483,3.9842851,599.11,598.38,0.33423576]
[1741177243677,3.9842851,599.1,598.38,0.33423576]
[1741177243880,3.9842851,599.09,598.38,0.33423576]
[1741177244177,2.37492695,599.08,598.38,0.33423576]
[1741177244381,3.98467141,599.07,598.38,0.33423576]
[1741177244585,3.98467141,599.06,598.38,0.33423576]
[1741177244776,5.13285731,599.05,598.38,0.33423576]
[1741177244983,3.98467141,599.04,598.38,0.33423576]
[1741177245276,3.98467141,599.03,598.03,0.29068068]
[1741177245480,3.98467141,599.02,598.03,0.29068068]
[1741177245682,3.98467141,599.01,598.03,0.29068068]
[1741177245883,3.98165407,599.0,598.03,0.29068068]
[1741177246077,3.98165407,598.99,598.03,0.29068068]
[1741177246281,3.98165407,598.98,598.03,0.29068068]
[1741177246482,5.12983997,598.97,598.03,0.29068068]
[1741177246683,3.98165407,598.96,598.03,0.29068068]
[1741177246882,5.12983997,598.95,597.45,1.24252345]
[1741177247083,3.98165407,598.94,597.45,1.24252345]
[1741177247278,3.98165407,598.93,597.99,0.29080942]
[1741177247480,3.98165407,598.92,597.45,1.24252345]
[1741177247684,1.1481859,598.93,597.45,1.24252345]
[1741177247685,3.97910298,598.91,597.45,1.24252345]
[1741177247885,3.97910298,598.9,597.45,1.24252345]
[1741177248077,2.51938117,598.89,597.45,1.24252345]
[1741177248280,2.51938117,598.88,597.46,0.2908155]
[1741177248586,2.51938117,598.87,597.46,0.2908155]
[1741177248785,2.51938117,598.86,597.16,1.24252345]
[1741177248985,3.66990531,598.85,597.46,0.29085438]
[1741177249179,1.15052414,598.85,597.16,1.24252345]
[1741177249381,5.12759286,599.17,597.18,0.33490739]
[1741177249585,3.97706872,599.16,597.18,0.33490739]
[1741177249787,3.97706872,599.15,597.18,0.33490739]
[1741177249985,5.12759286,599.14,597.19,0.29082886]
[1741177250186,0.33382294,599.12,597.19,0.29082886]
[1741177250386,5.12759286,599.11,597.19,0.29082886]
[1741177250681,3.97706872,599.1,597.21,0.33489057]
[1741177250887,3.97706872,599.09,597.21,0.33489057]
[1741177251186,4.31091394,599.08,597.21,0.33489057]
[1741177251383,2.85193946,599.07,597.21,0.33489057]
[1741177251586,1.24571891,599.06,597.21,0.33489057]
[1741177251785,0.91186254,599.05,597.21,0.33489057]
[1741177251981,0.91186254,599.04,597.21,0.33489057]
[1741177252487,3.66776449,599.04,597.21,0.33489057]
[1741177252681,0.91186254,599.03,597.21,0.33489057]
[1741177252883,2.06238668,599.03,597.21,0.33489057]
[1741177253083,1.15052414,599.03,597.21,0.33489057]
[1741177253283,2.06238668,599.03,597.21,0.33489057]
[1741177253479,0.91186254,599.05,597.21,0.33489057]
[1741177253685,0.62465728,599.06,597.21,0.33489057]
[1741177253686,0.178,599.02,597.21,0.33489057]
[1741177254586,1.24574678,599.01,597.21,0.33489057]
[1741177254783,1.24574678,599.01,597.54,1.24252345]
[1741177254988,1.24574678,599.01,597.56,0.33469442]
[1741177255488,0.91186254,599.0,597.56,0.33469442]
[1741177255686,0.91186254,598.99,597.56,0.33469442]
[1741177255887,0.91186254,599.0,597.56,0.33469442]
[1741177256087,1.20264644,598.99,597.56,0.33469442]
[1741177256289,0.91186254,598.98,597.56,0.33469442]
[1741177256591,0.91186254,598.97,597.56,0.33469442]
[1741177256789,1.24577465,598.96,597.56,0.33469442]
[1741177256985,1.24578022,598.95,597.56,0.33469442]
[1741177257190,0.91186254,598.94,597.56,0.33469442]
[1741177257391,4.00156969,598.95,597.56,0.33469442]
[1741177257594,2.51712787,598.94,597.56,0.33469442]
[1741177258094,1.15052414,598.93,597.56,0.33469442]
[1741177258387,2.06238668,598.93,597.56,0.33469442]
[1741177260587,1.24579695,598.92,597.56,0.33469442]
[1741177260794,1.24580253,598.91,597.56,0.33469442]
[1741177260989,0.91186254,598.9,597.56,0.33469442]
[1741177261189,0.91186254,598.89,597.56,0.33469442]
[1741177261388,3.97093177,598.9,597.56,0.33469442]
[1741177261593,3.97093177,598.89,597.56,0.33469442]
[1741177261797,5.12145591,598.88,597.56,0.33469442]
[1741177261995,3.97093177,598.87,597.56,0.33469442]
[1741177262191,3.97093177,598.86,597.56,0.33469442]
[1741177262389,5.12145591,598.85,597.56,0.33469442]
[1741177262594,3.97093177,598.84,597.56,0.33469442]
[1741177262794,3.97093177,598.83,597.56,0.33469442]
[1741177262994,3.97093177,598.82,597.56,0.33469442]
[1741177263295,3.97093177,598.81,597.56,0.33469442]
[1741177263498,3.97093177,598.8,597.56,0.33469442]
[1741177263697,3.97093177,598.79,597.56,0.33469442]
[1741177263892,3.97093177,598.78,597.56,0.33469442]
[1741177264094,5.12145591,598.77,597.56,0.33469442]
[1741177264292,3.97093177,598.76,597.56,0.33469442]
[1741177264500,0.89706576,598.75,597.56,0.33469442]
[1741177264699,1.59715969,598.79,597.56,0.33469442]
[1741177264894,0.29088842,598.8,597.56,0.33469442]
[1741177266698,3.04689507,598.84,597.56,0.33469442]
[1741177266893,1.45083818,598.83,597.56,0.33469442]
[1741177267098,0.29086532,598.79,597.56,0.33469442]
[1741177269693,3.04654081,598.84,597.56,0.33469442]
[1741177269897,0.178,598.78,597.56,0.33469442]
[1741177270297,0.30708404,598.77,597.56,0.33469442]
[1741177270594,0.178,598.78,597.56,0.33469442]
[1741177270998,0.29091639,598.76,597.56,0.33469442]
[1741177271398,0.98183369,598.71,597.56,0.33469442]
[1741177271595,3.04654081,598.7,597.56,0.33469442]
[1741177271900,1.15052414,598.75,597.56,0.33469442]
[1741177271901,3.04654081,598.69,597.56,0.33469442]
[1741177272101,3.04654081,598.68,597.56,0.33469442]
[1741177272297,1.45083818,598.67,597.56,0.33469442]
[1741177272497,1.59570263,598.68,597.56,0.33469442]
[1741177272903,3.04654081,598.73,597.56,0.33469442]
[1741177273197,2.60136232,598.72,597.56,0.33469442]
[1741177273398,1.15052414,598.72,597.56,0.33469442]
[1741177273800,3.04564124,598.85,597.56,0.33469442]
[1741177274005,0.2909249,598.71,597.56,0.33469442]
[1741177274201,1.45083818,598.83,597.56,0.33469442]
[1741177274500,2.60136232,598.82,597.56,0.33469442]
[1741177274806,3.04564124,598.81,597.56,0.33469442]
[1741177275102,0.29087383,598.77,597.56,0.33469442]
[1741177275807,3.22364124,598.78,597.56,0.33469442]
[1741177276003,2.60136232,598.77,597.56,0.33469442]
[1741177276206,1.59480306,598.76,597.56,0.33469442]
[1741177276406,0.90658412,598.75,597.56,0.33469442]
[1741177276707,3.95110919,598.74,597.56,0.33469442]
[1741177276909,3.95110919,598.73,597.56,0.33469442]
[1741177277109,5.10163333,598.72,597.56,0.33469442]
[1741177277310,3.95110919,598.71,597.56,0.33469442]
[1741177277510,3.95110919,598.7,597.56,0.33469442]
[1741177277811,3.95110919,598.69,597.56,0.33469442]
[1741177278011,5.10163333,598.68,597.56,0.33469442]
[1741177278209,3.95110919,598.67,597.56,0.33469442]
[1741177278403,3.95110919,598.66,597.56,0.33469442]
[1741177278604,3.95110919,598.65,597.56,0.33469442]
[1741177278808,3.95110919,598.64,597.56,0.33469442]
[1741177279012,3.95110919,598.63,597.56,0.33469442]
[1741177279308,3.95352089,598.62,597.56,0.33469442]
[1741177279511,5.10404503,598.61,597.56,0.33469442]
[1741177279709,3.95352089,598.6,597.56,0.33469442]
[1741177279914,3.95352089,598.59,597.56,0.33469442]
[1741177280112,5.10404503,598.58,597.56,0.33469442]
[1741177280308,3.95352089,598.57,597.56,0.33469442]
[1741177280612,3.95352089,598.56,597.56,0.33469442]
[1741177280815,3.95352089,598.55,597.56,0.33469442]
[1741177281014,0.90719916,598.54,597.56,0.33469442]
[1741177281213,0.90719916,598.53,597.56,0.33469442]
[1741177281409,0.90719916,598.52,597.56,0.33469442]
[1741177281607,3.95866144,598.7,597.56,0.33469442]
[1741177281813,3.95866144,598.69,597.56,0.33469442]
[1741177282006,3.42935294,599.41,597.56,0.33469442]
[1741177282007,5.10918558,598.68,597.56,0.33469442]
[1741177282212,3.95866144,598.67,597.56,0.33469442]
[1741177282515,5.10918558,598.66,597.56,0.33469442]
[1741177282719,3.95866144,598.65,597.56,0.33469442]
[1741177282916,3.95866144,598.64,597.56,0.33469442]
[1741177283120,3.95866144,598.63,597.56,0.33469442]
[1741177283421,3.95866144,598.62,597.56,0.33469442]
[1741177283615,2.35949443,598.61,597.56,0.33469442]
[1741177283821,2.50743536,598.6,597.56,0.33469442]
[1741177284015,2.50743536,598.59,597.56,0.33469442]
[1741177284216,2.50743536,598.58,597.56,0.33469442]
[1741177284417,2.50743536,598.57,597.56,0.33469442]
[1741177284620,2.50743536,598.56,597.56,0.33469442]
[1741177284821,2.50743536,598.55,597.56,0.33469442]
[1741177285117,2.50743536,598.54,597.56,0.33469442]
[1741177285321,1.15052414,598.55,597.56,0.33469442]
[1741177285322,2.50743536,598.53,597.56,0.33469442]
[1741177285623,2.50743536,598.52,597.56,0.33469442]
[1741177285816,2.50743536,598.51,597.56,0.33469442]
[1741177286016,2.50743536,598.5,597.56,0.33469442]
[1741177286222,2.50743536,598.49,597.56,0.33469442]
[1741177286420,0.90719916,598.48,597.56,0.33469442]
[1741177286617,1.15052414,598.49,597.56,0.33469442]
[1741177286818,3.96072173,598.63,597.56,0.33469442]
[1741177287021,3.96072173,598.62,597.56,0.33469442]
[1741177287222,3.96072173,598.61,597.56,0.33469442]
[1741177287417,3.96072173,598.6,597.56,0.33469442]
[1741177287620,1.15052414,598.61,597.56,0.33469442]
[1741177287621,3.96072173,598.59,597.56,0.33469442]
[1741177287822,3.96072173,598.58,597.56,0.33469442]
[1741177288018,3.96072173,598.57,597.56,0.33469442]
[1741177288216,3.96072173,598.56,597.56,0.33469442]
[1741177288419,3.96072173,598.55,597.56,0.33469442]
[1741177288617,3.96072173,598.54,597.56,0.33469442]
[1741177288821,3.96072173,598.53,597.56,0.33469442]
[1741177289023,3.96072173,598.52,597.56,0.33469442]
[1741177289224,1.44147823,598.54,597.56,0.33469442]
[1741177289225,3.96072173,598.51,597.56,0.33469442]
[1741177289524,3.96346582,598.5,597.56,0.33469442]
[1741177289723,2.50918257,598.49,597.56,0.33469442]
[1741177289922,2.50918257,598.48,597.56,0.33469442]
[1741177290124,0.90894416,598.47,597.56,0.33469442]
[1741177290323,0.90894416,598.46,597.56,0.33469442]
[1741177290623,0.90894416,598.45,597.56,0.33469442]
[1741177290925,1.15052414,598.46,597.56,0.33469442]
[1741177290926,0.90894416,598.44,597.56,0.33469442]
[1741177291120,0.90894416,598.43,597.56,0.33469442]
[1741177291326,0.29095409,598.44,597.56,0.33469442]
[1741177291625,0.90894416,598.43,597.56,0.33469442]
[1741177291821,0.90894416,598.42,597.56,0.33469442]
[1741177292021,0.90894416,598.41,597.56,0.33469442]
[1741177292223,0.90893704,598.4,597.56,0.33469442]
[1741177292623,0.90893704,598.39,597.56,0.33469442]
[1741177293025,1.15052414,598.41,597.56,0.33469442]
[1741177293629,0.9096363,598.4,597.56,0.33469442]
[1741177293825,0.9096363,598.39,597.56,0.33469442]
[1741177294027,0.9096363,598.38,597.56,0.33469442]
[1741177294224,1.60252404,598.4,597.56,0.33469442]
[1741177294225,2.06016044,598.37,597.56,0.33469442]
[1741177294425,0.9096363,598.36,597.56,0.33469442]
[1741177294622,0.9096363,598.35,597.56,0.33469442]
[1741177294927,0.9096363,598.34,597.56,0.33469442]
[1741177295121,2.06016044,598.33,597.56,0.33469442]
[1741177295327,3.9678353,598.32,597.56,0.33469442]
[1741177295627,3.9678353,598.31,597.56,0.33469442]
[1741177295824,3.9678353,598.3,597.56,0.33469442]
[1741177296020,3.9678353,598.29,597.56,0.33469442]
[1741177296225,3.9678353,598.28,597.56,0.33469442]
[1741177296526,3.9678353,598.27,597.56,0.33469442]
[1741177296727,3.9678353,598.26,597.56,0.33469442]
[1741177297027,3.9678353,598.25,597.56,0.33469442]
[1741177297327,3.9678353,598.24,597.56,0.33469442]
[1741177297523,3.9678353,598.23,597.56,0.33469442]
[1741177297731,2.51216034,598.22,597.56,0.33469442]
[1741177297929,2.06016044,598.21,597.56,0.33469442]
[1741177298129,0.9096363,598.2,597.56,0.33469442]
[1741177298324,0.9096363,598.19,597.56,0.33469442]
[1741177298628,1.15052414,598.19,597.56,0.33469442]
[1741177299128,1.15052414,598.2,597.56,0.33469442]
[1741177299728,3.96834006,598.36,597.56,0.33469442]
[1741177299930,3.96834006,598.35,597.56,0.33469442]
[1741177300123,3.66321501,598.34,597.56,0.33469442]
[1741177300429,2.51269087,598.33,597.56,0.33469442]
[1741177300627,2.51269087,598.32,597.56,0.33469442]
[1741177300823,2.51415855,598.31,597.56,0.33469442]
[1741177301024,0.90997094,598.3,597.56,0.33469442]
[1741177301227,0.178,598.32,597.56,0.33469442]
[1741177301628,0.46902708,598.32,597.56,0.33469442]
[1741177302630,0.178,598.32,597.56,0.33469442]
[1741177308529,2.06377407,598.31,597.56,0.33469442]
[1741177308828,1.15117491,598.3,597.56,0.33469442]
[1741177309025,0.29101856,598.3,597.56,0.33469442]
[1741177309428,0.91255233,598.29,597.56,0.33469442]
[1741177309631,0.29101856,598.3,597.56,0.33469442]
[1741177310232,2.06374233,598.29,597.56,0.33469442]
[1741177310433,0.91257955,598.28,597.56,0.33469442]
[1741177310628,0.91257955,598.27,597.56,0.33469442]
[1741177310835,0.91257955,598.26,597.56,0.33469442]
[1741177311033,0.29101856,598.3,597.56,0.33469442]
[1741177311335,0.91281707,598.29,597.56,0.33469442]
[1741177311630,2.52092857,598.28,597.56,0.33469442]
[1741177311833,1.15171489,598.29,597.56,0.33469442]
[1741177311834,2.52092857,598.27,597.56,0.33469442]
[1741177312032,2.52092857,598.26,597.56,0.33469442]
[1741177312234,3.67264346,598.25,597.56,0.33469442]
[1741177312429,2.52092857,598.24,597.56,0.33469442]
[1741177312635,3.67264346,598.23,597.56,0.33469442]
[1741177312934,3.98143589,598.22,597.56,0.33469442]
[1741177313129,3.98143589,598.21,597.56,0.33469442]
[1741177313332,5.13315078,598.2,597.56,0.33469442]
[1741177313528,3.98143589,598.19,597.56,0.33469442]
[1741177313734,5.13315078,598.18,597.56,0.33469442]
[1741177314035,5.13315078,598.17,597.56,0.33469442]
[1741177314235,3.98206763,598.16,597.56,0.33469442]
[1741177314533,3.67264346,598.15,597.56,0.33469442]
[1741177314731,3.98183953,598.14,597.56,0.33469442]
[1741177314929,5.13355442,598.13,597.56,0.33469442]
[1741177315134,3.98183953,598.12,597.56,0.33469442]
[1741177315330,3.98183953,598.11,597.56,0.33469442]
[1741177315537,5.13355442,598.1,597.03,1.24252345]
[1741177315736,3.98183953,598.09,597.03,1.24252345]
[1741177315936,3.98183953,598.08,597.03,1.24252345]
[1741177316136,2.52092857,598.07,597.04,0.29116222]
[1741177316440,2.52092857,598.06,597.04,0.29116222]
[1741177316639,2.52092857,598.05,597.04,0.29116222]
[1741177316832,2.52092857,598.04,597.04,0.29116222]
[1741177317041,2.52092857,598.03,597.04,0.29116222]
[1741177317233,3.67264346,598.02,597.04,0.29116222]
[1741177317436,0.91281707,598.01,597.04,0.29116222]
[1741177317636,1.15171489,598.02,597.04,0.29116222]
[1741177317837,1.15171489,598.0,597.04,0.29116222]
[1741177318338,5.13244971,598.26,597.04,0.29116222]
[1741177318634,5.13244971,598.25,597.04,0.29116222]
[1741177318833,3.98073482,598.24,597.04,0.29116222]
[1741177319037,5.13244971,598.23,597.04,0.29116222]
[1741177319333,3.98073482,598.22,597.04,0.29116222]
[1741177319538,1.15171489,598.23,597.04,0.29116222]
[1741177319539,3.98073482,598.21,597.04,0.29116222]
[1741177319739,5.13244971,598.2,597.04,0.29116222]
[1741177319941,3.98073482,598.19,597.04,0.29116222]
[1741177320135,5.13244971,598.18,597.04,0.29116222]
[1741177320342,3.98073482,598.17,597.04,0.29116222]
[1741177320537,3.98073482,598.16,597.04,0.29116222]
[1741177320839,5.13244971,598.15,596.78,1.24252345]
[1741177321042,3.98073482,598.14,596.78,1.24252345]
[1741177321241,3.98073482,598.13,596.78,1.24252345]
[1741177321439,3.98073482,598.12,596.78,1.24252345]
[1741177321636,3.98073482,598.11,597.09,1.24252345]
[1741177321840,5.13244971,598.1,597.09,1.24252345]
[1741177322037,2.52048646,598.09,597.09,1.24252345]
[1741177322241,3.67220135,598.08,597.09,1.24252345]
[1741177322441,2.52048646,598.07,597.09,1.24252345]
[1741177322640,3.67220135,598.06,597.09,1.24252345]
[1741177322837,0.91279375,598.05,597.09,1.24252345]
[1741177323037,1.15171489,598.06,597.09,1.24252345]
[1741177323547,0.29113665,598.1,597.06,0.29113665]
[1741177323945,3.98274065,598.29,596.98,1.24252345]
[1741177324146,2.52176986,598.28,596.98,1.24252345]
[1741177324346,0.91321558,598.29,596.98,1.24252345]
[1741177324537,0.91321558,598.27,596.98,1.24252345]
[1741177324739,1.15189553,598.28,596.98,1.24252345]
[1741177324946,1.15189553,598.28,597.0,0.33500837]
[1741177325348,0.29107212,598.29,597.0,0.33500837]
[1741177325840,0.29107212,598.29,597.24,1.24252345]
[1741177326948,2.52225357,598.4,597.24,1.24252345]
[1741177327245,1.15189553,598.39,597.25,0.33486814]
[1741177327647,5.13825498,598.71,597.25,0.33486814]
[1741177327849,3.98635945,598.7,597.25,0.33486814]
[1741177328144,0.29095774,598.41,597.25,0.33486814]
[1741177328647,5.13825498,598.67,597.25,0.33486814]
[1741177328847,3.98696981,598.66,597.25,0.33486814]
[1741177329043,3.98696981,598.65,597.25,0.33486814]
[1741177329244,1.15189553,598.66,597.25,0.33486814]
[1741177329245,0.29096382,598.48,597.25,0.33486814]
[1741177330950,0.29096382,598.48,597.48,1.24252345]
[1741177331148,1.15189553,598.57,597.48,1.24252345]
[1741177331149,2.06583058,598.57,597.48,1.24252345]
[1741177331345,1.15189553,598.57,597.48,1.24252345]
[1741177331550,0.29091639,598.53,597.49,0.33473363]
[1741177331750,1.15189553,598.52,597.49,0.33473363]
[1741177332050,3.98821806,598.84,597.49,0.33473363]
[1741177332250,0.29090301,598.61,597.49,0.33473363]
[1741177332451,0.91433999,598.6,597.49,0.33473363]
[1741177332750,0.91438313,598.59,597.49,0.33473363]
[1741177332952,0.91438438,598.58,597.49,0.33473363]
[1741177333155,1.15336198,598.59,597.49,0.33473363]
[1741177333346,2.06771913,598.58,597.49,0.33473363]
[1741177333547,1.15336198,598.58,597.49,0.33473363]
[1741177333846,0.29089328,598.61,597.49,0.33473363]
[1741177334052,0.91436723,598.6,597.49,0.33473363]
[1741177334245,0.91436723,598.59,597.49,0.33473363]
[1741177334450,0.29089328,598.61,597.49,0.33473363]
[1741177334752,0.91431231,598.6,597.49,0.33473363]
[1741177335048,2.06764155,598.59,597.49,0.33473363]
[1741177335251,0.91431231,598.58,597.49,0.33473363]
[1741177335452,1.15332924,598.59,597.49,0.33473363]
[1741177335646,0.29089328,598.61,597.49,0.33473363]
[1741177335848,0.91430171,598.6,597.49,0.33473363]
[1741177336047,0.29089693,598.64,597.49,0.33473363]
[1741177336248,0.91409842,598.63,597.49,0.33473363]
[1741177336554,0.29089693,598.64,597.49,0.33473363]
[1741177336753,1.15314654,598.62,597.49,0.33473363]
[1741177336954,1.15314654,598.61,597.49,0.33473363]
[1741177337351,0.29089693,598.64,597.49,0.33473363]
[1741177337654,0.91382253,598.63,597.49,0.33473363]
[1741177337857,1.15280258,598.63,597.49,0.33473363]
[1741177338351,1.15280258,598.62,597.49,0.33473363]
[1741177338856,1.46185104,598.9,597.49,0.33473363]
[1741177339055,3.98539006,598.89,597.49,0.33473363]
[1741177339358,3.98539006,598.88,597.49,0.33473363]
[1741177339652,3.98539006,598.87,597.49,0.33473363]
[1741177339850,3.98539006,598.86,597.49,0.33473363]
[1741177340053,5.13768696,598.85,597.49,0.33473363]
[1741177340254,0.2908714,598.72,597.49,0.33473363]
[1741177343553,0.91368879,598.71,597.49,0.33473363]
[1741177343757,0.91368879,598.7,597.49,0.33473363]
[1741177344060,0.91368879,598.69,597.49,0.33473363]
[1741177344353,0.91368879,598.68,597.49,0.33473363]
[1741177344558,0.91368879,598.67,597.49,0.33473363]
[1741177344754,0.91368879,598.66,597.49,0.33473363]
[1741177345059,0.91368879,598.65,597.49,0.33473363]
[1741177345259,3.98192646,598.67,597.49,0.33473363]
[1741177345456,3.98176096,598.66,597.49,0.33473363]
[1741177345660,3.98176096,598.65,597.49,0.33473363]
[1741177345856,5.13405786,598.64,597.49,0.33473363]
[1741177346062,3.98176096,598.63,597.49,0.33473363]
[1741177346363,5.13405786,598.62,597.49,0.33473363]
[1741177346560,3.98176096,598.61,597.49,0.33473363]
[1741177346857,3.98152374,598.6,597.49,0.33473363]
[1741177347163,3.67398929,598.59,597.49,0.33473363]
[1741177347463,2.52169239,598.58,597.49,0.33473363]
[1741177347756,3.67398929,598.57,597.49,0.33473363]
[1741177347955,2.52169239,598.56,597.49,0.33473363]
[1741177348165,3.67398929,598.55,597.49,0.33473363]
[1741177348364,0.91368879,598.54,597.49,0.33473363]
[1741177348566,0.91368879,598.53,597.49,0.33473363]
[1741177348867,2.52169239,598.52,597.49,0.33473363]
[1741177349067,0.29100396,598.37,597.49,0.33473363]
[1741177351162,0.91368879,598.36,597.49,0.33473363]
[1741177351369,0.91368879,598.35,597.49,0.33473363]
[1741177351668,0.91368879,598.34,597.49,0.33473363]
[1741177351863,0.91368879,598.31,597.49,0.33473363]
[1741177352069,2.06598569,598.3,597.49,0.33473363]
[1741177352271,0.91368879,598.29,597.49,0.33473363]
[1741177352464,1.1522969,598.31,597.49,0.33473363]
[1741177352865,2.06412625,598.31,597.44,0.29100396]
[1741177353164,5.13105343,598.35,597.44,0.29100396]
[1741177353362,2.51983295,598.34,597.44,0.29100396]
[1741177353573,2.51983295,598.33,597.44,0.29100396]
[1741177353771,0.91182935,598.32,597.44,0.29100396]
[1741177353977,0.91182358,598.31,596.85,1.24252345]
[1741177354171,1.1522969,598.35,596.85,1.24252345]
[1741177354373,2.75852121,598.35,596.85,1.24252345]
[1741177354572,2.51792792,598.34,596.87,0.33508134]
[1741177354772,1.1522969,598.35,596.87,0.33508134]
[1741177355070,0.29110133,598.33,596.88,1.53362478]
[1741177355269,2.51768006,598.32,596.9,0.33506449]
[1741177355469,3.66997696,598.31,596.9,0.33506449]
[1741177355672,3.97631947,598.3,596.9,0.33506449]
[1741177355872,3.97631947,598.29,596.9,0.33506449]
[1741177356072,3.97631947,598.28,596.9,0.33506449]
[1741177356273,3.97631947,598.27,596.9,0.33506449]
[1741177356475,3.97631947,598.26,596.9,0.33506449]
[1741177356678,2.51768006,598.25,596.9,0.33506449]
[1741177356876,2.51768006,598.24,596.9,0.33506449]
[1741177357071,3.66997696,598.23,596.9,0.33506449]
[1741177357270,2.51768006,598.22,596.9,0.33506449]
[1741177357574,0.91164963,598.21,596.9,0.33506449]
[1741177357768,0.91164963,598.2,596.9,0.33506449]
[1741177358172,0.29112203,598.2,596.9,0.33506449]
[1741177359075,1.1522969,598.28,596.9,0.33506449]
[1741177359375,0.29108672,598.27,596.9,0.33506449]
[1741177360079,1.1522969,598.3,596.9,0.33506449]
[1741177360376,0.178,598.33,596.9,0.33506449]
[1741177361275,0.178,598.33,597.18,1.24252345]
[1741177361571,0.178,598.33,597.19,0.33490179]
[1741177364082,0.29105142,598.32,597.19,0.33490179]
[1741177364983,0.178,598.33,597.19,1.57742524]
[1741177366385,0.29102952,598.32,597.19,1.57742524]
[1741177366983,0.29102952,598.32,597.19,0.33490179]
[1741177368884,1.60585987,598.31,597.19,0.33490179]
[1741177369087,1.60585987,598.3,597.19,0.33490179]
[1741177369287,1.60585987,598.32,597.19,0.33490179]
[1741177369487,1.60585987,598.31,597.19,0.33490179]
[1741177369683,0.91174554,598.3,597.19,0.33490179]
[1741177369888,0.91174554,598.29,597.19,0.33490179]
[1741177370088,0.91174554,598.28,597.19,0.33490179]
[1741177370388,0.178,598.33,597.19,0.33490179]
[1741177370389,2.06404244,598.27,597.19,0.33490179]
[1741177370583,0.91174554,598.26,597.19,0.33490179]
[1741177370782,0.91174554,598.25,597.19,0.33490179]
[1741177370985,0.91107806,598.24,597.19,0.33490179]
[1741177371186,0.91108825,598.23,597.19,0.33490179]
[1741177371382,1.1522969,598.24,597.19,0.33490179]
[1741177371889,1.1522969,598.26,597.19,0.33490179]
[1741177372088,0.91113404,598.25,597.19,0.33490179]
[1741177372287,1.1522969,598.26,597.19,0.33490179]
[1741177372288,0.91113404,598.24,597.19,0.33490179]
[1741177372491,0.91112734,598.23,597.19,0.33490179]
[1741177372691,2.06047414,598.22,597.19,0.33490179]
[1741177372892,1.1493468,598.22,597.19,0.33490179]
[1741177373283,0.29108307,598.23,597.19,0.33490179]
[1741177373892,0.91121714,598.22,597.19,0.33490179]
[1741177374092,0.29108307,598.23,597.19,0.33490179]
[1741177374893,0.178,598.33,597.19,0.33490179]
[1741177375093,0.29098815,598.23,597.19,0.33490179]
[1741177375589,0.91126555,598.22,597.19,0.33490179]
[1741177375793,0.91126555,598.21,597.19,0.33490179]
[1741177375993,0.91126555,598.2,597.19,0.33490179]
[1741177376193,0.91126555,598.19,597.19,0.33490179]
[1741177376388,2.06072269,598.18,597.19,0.33490179]
[1741177376590,0.91126555,598.17,597.19,0.33490179]
[1741177376788,1.14945714,598.18,597.19,0.33490179]
[1741177376994,1.14945714,598.16,597.19,0.33490179]
[1741177377291,0.29107698,598.21,597.19,0.33490179]
[1741177377997,3.66660298,598.29,597.19,0.33490179]
[1741177378294,0.29108064,598.2,597.19,0.33490179]
[1741177378495,0.33429163,598.28,597.19,0.33490179]
[1741177379090,2.80789657,598.27,597.19,0.33490179]
[1741177379294,4.30958517,598.26,597.19,0.33490179]
[1741177379594,2.5169887,598.25,597.19,0.33490179]
[1741177379896,3.66678616,598.24,597.19,0.33490179]
[1741177380087,3.97528236,598.23,597.19,0.33490179]
[1741177380291,3.97528236,598.22,597.19,0.33490179]
[1741177380491,3.97528236,598.21,597.19,0.33490179]
[1741177380693,3.97528236,598.2,597.19,0.33490179]
[1741177380993,3.97528236,598.19,597.19,0.33490179]
[1741177381194,3.97528236,598.18,597.19,0.33490179]
[1741177381493,5.12507982,598.17,597.19,0.33490179]
[1741177381693,3.66678616,598.16,597.19,0.33490179]
[1741177381891,2.5169887,598.15,597.19,0.33490179]
[1741177382090,3.66678616,598.14,597.19,0.33490179]
[1741177382292,0.91143354,598.13,597.19,0.33490179]
[1741177382493,3.66667562,598.25,597.19,0.33490179]
[1741177382700,4.30937493,598.24,597.19,0.33490179]
[1741177382895,4.00099519,598.23,597.19,0.33490179]
[1741177383096,5.12485841,598.22,597.19,0.33490179]